fUSD/lending_fUSD_20251103
["ID","MTS","AMOUNT","RATE_DAILY","PERIOD"]
[392994979,1762206649730,-151.0,0.00036602,31]
[392994980,1762206649739,-216.559978,0.00036602,31]
[392994981,1762206649748,-151.0,0.00036602,31]
[392994982,1762206649757,-151.0,0.00036602,31]
[392994983,1762206649767,-216.559978,0.00036602,31]
[392994984,1762206649776,-151.0,0.00036602,31]
[392994985,1762206649785,-216.559978,0.00036602,31]
[392994986,1762206649794,-239.431653,0.00036602,31]
[392994987,1762206649803,-239.431653,0.00036602,31]
[392994988,1762206649812,-239.431653,0.00036602,31]
[392994989,1762206649821,-239.431653,0.00036602,31]
[392994990,1762206649831,-958.43501829,0.0003661,2]
[392994991,1762206649840,-151.0,0.00036613,31]
[392994992,1762206649849,-151.0,0.00036613,31]
[392994993,1762206649858,-151.0,0.00036613,31]
[392994994,1762206649867,-151.0,0.00036613,31]
[392994995,1762206649877,-151.0,0.00036613,31]
[392994996,1762206649886,-151.0,0.00036613,31]
[392994997,1762206649895,-151.0,0.00036613,31]
[392994998,1762206649904,-151.0,0.00036613,31]
[392994999,1762206649913,-258.993616,0.00036613,31]
[392995000,1762206649922,-151.0,0.00036613,31]
[392995001,1762206649931,-151.0,0.00036613,31]
[392995002,1762206649941,-151.0,0.00036613,31]
[392995003,1762206649951,-151.0,0.00036613,15]
[392995004,1762206649959,-151.0,0.00036613,15]
[392995005,1762206649969,-151.0,0.00036613,31]
[392995006,1762206649979,-151.0,0.00036613,31]
[392995007,1762206649988,-151.0,0.00036613,31]
[392995008,1762206649997,-151.0,0.00036613,31]
[392995009,1762206650006,-151.0,0.00036613,31]
[392995010,1762206650015,-151.0,0.00036613,31]
[392995011,1762206650024,-151.0,0.00036613,31]
[392995012,1762206650033,-151.0,0.00036613,31]
[392995013,1762206650042,-151.0,0.00036613,31]
[392995014,1762206650052,-153.529015,0.00036613,31]
[392995015,1762206650061,-268.240452,0.00036613,31]
[392995016,1762206650070,-151.0,0.00036613,31]
[392995017,1762206650080,-268.240452,0.00036613,31]
[392995018,1762206650089,-151.0,0.00036613,30]
[392995019,1762206650099,-268.240452,0.00036613,31]
[392995020,1762206650108,-151.0,0.00036613,31]
[392995021,1762206650117,-268.240452,0.00036613,31]
[392995022,1762206650127,-213.211794,0.00036613,31]
[392995023,1762206650137,-151.0,0.00036613,31]
[392995024,1762206650149,-159.477085,0.00036613,31]
[392995025,1762206650159,-213.211794,0.00036613,31]
[392995026,1762206650168,-213.211794,0.00036613,31]
[392995027,1762206650177,-231.946973,0.00036613,31]
[392995028,1762206650187,-213.211794,0.00036613,31]
[392995029,1762206650197,-231.946973,0.00036613,31]
[392995030,1762206650207,-344.393678,0.00036613,31]
[392995031,1762206650216,-231.946973,0.00036613,31]
[392995032,1762206650226,-344.393678,0.00036613,31]
[392995033,1762206650235,-233.531605,0.00036613,31]
[392995034,1762206650245,-231.946973,0.00036613,31]
[392995035,1762206650254,-344.393678,0.00036613,31]
[392995036,1762206650263,-233.531605,0.00036613,31]
[392995037,1762206650273,-344.393678,0.00036613,31]
[392995038,1762206650282,-233.531605,0.00036613,31]
[392995039,1762206650292,-233.531605,0.00036613,31]
[392995040,1762206650301,-181.560718,0.00036613,31]
[392995041,1762206650311,-181.560718,0.00036613,31]
[392995042,1762206650320,-181.560718,0.00036613,31]
[392995043,1762206650330,-151.0,0.00036613,31]
[392995044,1762206650339,-181.560718,0.00036613,31]
[392995045,1762206650348,-151.0,0.00036613,31]
[392995046,1762206650358,-212.011823,0.00036613,31]
[392995047,1762206650367,-212.011823,0.00036613,31]
[392995048,1762206650375,-212.011823,0.00036613,31]
[392995049,1762206650385,-212.011823,0.00036613,31]
[392995050,1762206650394,-151.0,0.00036613,31]
[392995051,1762206650403,-151.0,0.00036613,31]
[392995052,1762206650411,-151.0,0.00036613,31]
[392995053,1762206650420,-151.0,0.00036613,31]
[392995054,1762206650429,-151.0,0.00036613,31]
[392995055,1762206650438,-273.006367,0.00036613,31]
[392995056,1762206650447,-151.0,0.00036613,31]
[392995057,1762206650456,-151.0,0.00036613,31]
[392995058,1762206650465,-1865.5,0.00036623,2]
[392995059,1762206650475,-2000.0,0.00036628,2]
[392995060,1762206650484,-166.66,0.00036639,30]
[392995061,1762206650493,-1425.0,0.00036651,2]
[392995062,1762206650502,-243.0,0.00036655,120]
[392995063,1762206650512,-2000.0,0.00036663,2]
[392995064,1762206650521,-1999.98,0.00036666,2]
[392995065,1762206650530,-1000.0,0.00036666,7]
[392995066,1762206650539,-18391.1630814,0.00036666,4]
[392995067,1762206650549,-150.0,0.00036672,7]
[392995068,1762206650558,-500.0,0.00036674,15]
[392995069,1762206650566,-500.0,0.00036674,15]
[392995070,1762206650575,-28020.4002155,0.00036677,4]
[392995071,1762206650585,-18391.1630814,0.00036677,4]
[392995072,1762206650594,-1425.0,0.00036679,2]
[392995073,1762206650604,-500.0,0.00036683,15]
[392995074,1762206650614,-300.0,0.00036683,15]
[392995075,1762206650623,-500.0,0.00036684,30]
[392995076,1762206650632,-1012.0,0.00036684,30]
[392995077,1762206650784,-150.0,0.00036684,7]
[392995078,1762206650795,-151.0,0.00036687,31]
[392995079,1762206650804,-151.0,0.00036687,31]
[392995080,1762206650813,-158.255809,0.00036687,31]
[392995081,1762206650822,-274.575425,0.00036687,31]
[392995082,1762206650831,-151.0,0.00036687,31]
[392995083,1762206650840,-151.0,0.00036687,31]
[392995084,1762206650850,-156.663882,0.00036687,31]
[392995085,1762206650859,-151.0,0.00036687,31]
[392995086,1762206650868,-151.0,0.00036687,31]
[392995087,1762206650877,-151.0,0.00036687,31]
[392995088,1762206650886,-151.0,0.00036687,31]
[392995089,1762206650895,-151.0,0.00036687,31]
[392995090,1762206650904,-151.0,0.00036687,31]
[392995091,1762206650914,-151.0,0.00036687,31]
[392995092,1762206650923,-151.0,0.00036687,31]
[392995093,1762206650932,-220.794528,0.00036687,31]
[392995094,1762206650942,-151.0,0.00036687,31]
[392995095,1762206650956,-151.0,0.00036687,31]
[392995096,1762206650966,-179.391308,0.00036687,31]
[392995097,1762206650976,-151.0,0.00036687,31]
[392995098,1762206650986,-179.391308,0.00036687,31]
[392995099,1762206650996,-160.481984,0.00036687,31]
[392995100,1762206651005,-179.391308,0.00036687,31]
[392995101,1762206651015,-151.0,0.00036687,31]
[392995102,1762206651024,-179.391308,0.00036687,31]
[392995103,1762206651033,-151.0,0.00036687,31]
[392995104,1762206651042,-262.765243,0.00036687,31]
[392995105,1762206651052,-262.765243,0.00036687,31]
[392995106,1762206651062,-262.765243,0.00036687,31]
[392995107,1762206651071,-262.765243,0.00036687,31]
[392995108,1762206651082,-151.0,0.00036687,31]
[392995109,1762206651092,-297.731387,0.00036687,31]
[392995110,1762206651101,-151.0,0.00036687,31]
[392995111,1762206651111,-297.731387,0.00036687,31]
[392995112,1762206651120,-297.731387,0.00036687,31]
[392995113,1762206651130,-297.731387,0.00036687,31]
[392995114,1762206651140,-800.0,0.000367,13]
[392995115,1762206651153,-2151.16814354,0.00036707,2]
[392995116,1762206651163,-890.41706766,0.00036708,2]
[392995117,1762206651172,-1070.99108962,0.00036708,2]
[392995118,1762206651182,-200.0,0.00036724,2]
[392995119,1762206651191,-616.11772778,0.00036743,2]
[392995120,1762206651202,-18391.1630814,0.00036751,4]
[392995121,1762206651211,-882.04624044,0.0003676,30]
[392995122,1762206651220,-28020.4002155,0.0003676,4]
[392995123,1762206651231,-168.0,0.0003676,7]
[392995124,1762206651242,-151.0,0.00036761,15]
[392995125,1762206651251,-151.0,0.00036761,31]
[392995126,1762206651260,-151.0,0.00036761,15]
[392995127,1762206651270,-151.0,0.00036761,31]
[392995128,1762206651279,-151.0,0.00036761,31]
[392995129,1762206651288,-159.037364,0.00036761,31]
[392995130,1762206651297,-151.0,0.00036761,31]
[392995131,1762206651306,-151.0,0.00036761,31]
[392995132,1762206651315,-151.0,0.00036761,31]
[392995133,1762206651325,-151.0,0.00036761,31]
[392995134,1762206651335,-151.0,0.00036761,31]
[392995135,1762206651343,-542.952073,0.00036761,31]
[392995136,1762206651353,-542.952073,0.00036761,31]
[392995137,1762206651362,-542.952073,0.00036761,31]
[392995138,1762206651371,-458.126699,0.00036761,31]
[392995139,1762206651380,-542.952069,0.00036761,31]
[392995140,1762206651389,-458.126699,0.00036761,31]
[392995141,1762206651398,-458.126699,0.00036761,31]
[392995142,1762206651408,-458.126705,0.00036761,31]
[392995143,1762206651416,-151.0,0.00036761,31]
[392995144,1762206651426,-151.0,0.00036761,31]
[392995145,1762206651435,-200.0,0.00036765,10]
[392995146,1762206651445,-253.88091422,0.00036766,81]
[392995147,1762206651454,-165.64738028,0.00036766,15]
[392995148,1762206651463,-168.26926798,0.00036768,2]
[392995149,1762206651472,-1425.0,0.00036784,2]
[392995150,1762206651481,-168.0,0.00036789,2]
[392995151,1762206651491,-13558.7401898,0.000368,14]
[392995152,1762206651501,-1319.0,0.000368,13]
[392995153,1762206651511,-18391.1630814,0.00036801,4]
[392995154,1762206651520,-1000.0,0.00036801,7]
[392995155,1762206651529,-28020.4002155,0.00036811,4]
[392995156,1762206651538,-490.64735062,0.00036811,15]
[392995157,1762206651548,-500.0,0.00036811,15]
[392995158,1762206651557,-1425.0,0.00036819,2]
[392995159,1762206651566,-154.31092621,0.0003682,15]
[392995160,1762206651575,-150.0,0.0003682,15]
[392995161,1762206651584,-500.0,0.00036821,30]
[392995162,1762206651593,-1012.0,0.00036821,30]
[392995163,1762206651602,-408.1,0.00036821,14]
[392995164,1762206651611,-1425.0,0.00036821,2]
[392995165,1762206651621,-36782.3261628,0.00036821,4]
[392995166,1762206651630,-151.0,0.00036824,31]
[392995167,1762206651639,-151.0,0.00036824,31]
[392995168,1762206651648,-151.0,0.00036824,31]
[392995169,1762206651658,-556.528831,0.00036824,31]
[392995170,1762206651667,-556.528831,0.00036824,31]
[392995171,1762206651677,-416.883281,0.00036824,31]
[392995172,1762206651686,-556.528831,0.00036824,31]
[392995173,1762206651695,-416.883281,0.00036824,31]
[392995174,1762206651705,-416.883281,0.00036824,31]
[392995175,1762206651714,-556.528831,0.00036824,31]
[392995176,1762206651724,-416.883281,0.00036824,31]
[392995177,1762206651733,-157.601264,0.00036824,10]
[392995178,1762206651743,-1575.98719,0.00036824,31]
[392995179,1762206651753,-157.601264,0.00036824,10]
[392995180,1762206651763,-1575.98719,0.00036824,31]
[392995181,1762206651773,-157.601264,0.00036824,10]
[392995182,1762206651783,-852.467928,0.00036824,30]
[392995183,1762206651792,-157.601264,0.00036824,10]
[392995184,1762206651802,-1575.98719,0.00036824,31]
[392995185,1762206651811,-852.467928,0.00036824,30]
[392995186,1762206651821,-1575.98719,0.00036824,31]
[392995187,1762206651831,-852.467928,0.00036824,30]
[392995188,1762206651840,-852.467928,0.00036824,30]
[392995189,1762206651850,-163.452248,0.00036824,31]
[392995190,1762206651860,-163.452248,0.00036824,31]
[392995191,1762206651869,-163.452248,0.00036824,31]
[392995192,1762206651879,-151.0,0.00036824,31]
[392995193,1762206651888,-163.452248,0.00036824,31]
[392995194,1762206651898,-216.559978,0.00036824,31]
[392995195,1762206651907,-151.0,0.00036824,31]
[392995196,1762206651916,-151.0,0.00036824,31]
[392995197,1762206651926,-216.559978,0.00036824,31]
[392995198,1762206651935,-151.0,0.00036824,31]
[392995199,1762206651945,-216.559978,0.00036824,31]
[392995200,1762206651956,-215.970601,0.00036824,31]
[392995201,1762206651966,-216.559978,0.00036824,31]
[392995202,1762206651976,-239.431653,0.00036824,31]
[392995203,1762206651986,-239.431653,0.00036824,31]
[392995204,1762206651996,-239.431653,0.00036824,31]
[392995205,1762206652006,-239.431653,0.00036824,31]
[392995206,1762206652016,-2151.16814354,0.00036824,2]
[392995207,1762206652025,-1070.99108962,0.00036825,2]
[392995208,1762206652035,-364.76494327,0.0003683,2]
[392995209,1762206652045,-84061.2006466,0.00036831,4]
[392995210,1762206652054,-151.0,0.00036837,14]
[392995211,1762206652064,-151.0,0.00036837,14]
[392995212,1762206652074,-151.0,0.00036837,14]
[392995213,1762206652083,-151.0,0.00036837,14]
[392995214,1762206652093,-1267752.20884723,0.0003684,7]
[392995215,1762206653917,-626.25175563,0.0003684,7]
[392995216,1762206653929,-4463.08523353,0.0003684,7]
[392995217,1762206654037,-151.0,0.00035999,31]
[392995218,1762206654047,-682.81730511,0.0003684,7]
[392995219,1762206655645,-151.0,0.00036,31]
[392995220,1762206655654,-151.0,0.00036136,31]
[392995221,1762206655663,-151.0,0.00036537,31]
[392995222,1762206655672,-151.0,0.00036761,31]
[392995223,1762206655681,-54636.0,0.0003684,7]
[392995224,1762206655934,-8432.41061947,0.0003684,7]
[392995225,1762206655947,-345.09089697,0.0003684,7]
[392995226,1762206657083,-353.54110447,0.0003684,7]
[392995227,1762207607099,-158.28532352,0.00017845,2]
[392995233,1762207831864,-46.97467648,0.00017845,2]
[392995234,1762207831874,-205.26,0.00018748,2]
[392995235,1762207831883,-250.0,0.0001963,2]
[392995236,1762207831893,-205.26,0.0001965,2]
[392995237,1762207831902,-205.26,0.00020552,2]
[392995238,1762207831911,-205.26,0.00021455,2]
[392995239,1762207831920,-205.26,0.00022357,2]
[392995240,1762207831930,-123.78550921,0.00023259,2]
[392995241,1762207832016,-81.47449079,0.00023259,2]
[392995242,1762207832027,-205.26,0.00024162,2]
[392995243,1762207832035,-224.91770863,0.00024932,2]
[392995253,1762207837796,-174.08229137,0.00024932,2]
[392995254,1762207837805,-205.26,0.00025064,2]
[392995255,1762207837814,-205.26,0.00025967,2]
[392995256,1762207837823,-205.26,0.00026869,2]
[392995257,1762207837834,-205.26,0.00027771,2]
[392995258,1762207837843,-205.26,0.00028674,2]
[392995259,1762207837852,-205.26,0.00029576,2]
[392995260,1762207837861,-205.26,0.00030479,2]
[392995261,1762207837870,-205.26,0.00031381,2]
[392995262,1762207837879,-168.0,0.00031987,2]
[392995263,1762207837888,-168.0,0.0003217,2]
[392995264,1762207837897,-205.26,0.00032283,2]
[392995265,1762207837907,-500.0,0.00032521,2]
[392995266,1762207837917,-459.0,0.00032698,7]
[392995267,1762207837926,-168.0,0.0003273,2]
[392995268,1762207837935,-168.0,0.00032906,2]
[392995269,1762207837945,-233.0,0.00032906,3]
[392995270,1762207837956,-935.0,0.00032906,2]
[392995271,1762207837966,-1255.0,0.00032906,3]
[392995272,1762207837975,-205.26,0.00033186,2]
[392995273,1762207837984,-399.17177615,0.00033214,2]
[392995274,1762207837994,-168.0,0.00033353,2]
[392995275,1762207838004,-216.50362741,0.00033394,7]
[392995276,1762207838013,-168.0,0.00033394,7]
[392995277,1762207838023,-273.0,0.00033499,7]
[392995278,1762207838032,-168.0,0.00033526,2]
[392995279,1762207838042,-205.26,0.00034088,2]
[392995280,1762207838052,-1045.51,0.00034177,30]
[392995281,1762207838062,-1000.0,0.000342,2]
[392995282,1762207838071,-168.0,0.00034252,7]
[392995283,1762207838081,-168.0,0.00034277,120]
[392995284,1762207838090,-1772.68591407,0.00034523,2]
[392995288,1762207838141,-833.83972635,0.00034523,2]
[392995307,1762207839898,-332.3300001,0.00034523,2]
[392995308,1762207839959,-2266.14435948,0.00034523,2]
[392995309,1762207839969,-1000.0,0.00034523,2]
[392995310,1762207839979,-715.0,0.00034843,120]
[392995311,1762207839988,-548.48164684,0.00034962,2]
[392995312,1762207839998,-205.26,0.0003499,2]
[392995313,1762207840007,-178.8538309,0.00035,2]
[392995314,1762207840016,-316.9603081,0.00035,30]
[392995315,1762207840025,-2140.0,0.00035122,2]
[392995316,1762207840035,-559.0,0.00035122,2]
[392995317,1762207840044,-6468.0,0.00035122,2]
[392995318,1762207840054,-200.0,0.0003515,2]
[392995319,1762207840063,-250.0,0.00035171,2]
[392995320,1762207840072,-1000.0,0.00035181,2]
[392995321,1762207840081,-220.51543948,0.00035672,2]
[392995322,1762207840091,-5000.0,0.00035768,2]
[392995323,1762207840100,-220.51543948,0.00035772,2]
[392995324,1762207840109,-765.40233,0.000358,10]
[392995325,1762207840121,-1000.0,0.00035818,2]
[392995326,1762207840130,-273.0,0.00035828,2]
[392995327,1762207840139,-1000.0,0.00035889,120]
[392995328,1762207840148,-2066.278,0.00035889,43]
[392995329,1762207840157,-500.0,0.00035998,15]
[392995330,1762207840166,-180.69537844,0.00035998,15]
[392995331,1762207840176,-500.0,0.00035999,120]
[392995332,1762207840185,-500.0,0.00035999,120]
[392995333,1762207840194,-500.0,0.00035999,120]
[392995334,1762207840203,-500.0,0.00035999,120]
[392995335,1762207840213,-537.49,0.00035999,7]
[392995336,1762207840222,-325.17251933,0.00035999,120]
[392995337,1762207840232,-500.0,0.00035999,30]
[392995338,1762207840241,-38.73161136,0.00035999,120]
[392995339,1762207840253,-439.3,0.00035999,120]
[392995340,1762207840264,-21.96838864,0.00035999,120]
[392995341,1762207840273,-1073.18,0.00035999,120]
[392995342,1762207840282,-393.84505519,0.000362,22]
[392995344,1762207840394,-588.69553578,0.000362,22]
[392995345,1762207840405,-400.0,0.000362,22]
[392995346,1762207840480,-1082.90865234,0.000362,22]
[392995347,1762207840492,-59.86575569,0.000362,22]
[392995348,1762207840506,-211.82639706,0.00036204,2]
[392995349,1762207840516,-168.0,0.00036224,2]
[392995350,1762207840526,-172.83,0.00036249,2]
[392995351,1762207840534,-168.93,0.00036249,2]
[392995352,1762207840546,-414.6,0.00036249,2]
[392995353,1762207840555,-176.02,0.00036249,2]
[392995354,1762207840564,-168.93,0.00036249,2]
[392995355,1762207840574,-168.93,0.00036249,2]
[392995356,1762207840583,-168.0,0.00036265,120]
[392995357,1762207840592,-153.0,0.00036373,90]
[392995358,1762207840602,-153.0,0.00036383,90]
[392995359,1762207840611,-153.0,0.00036384,90]
[392995360,1762207840620,-3833.04621724,0.0003648,2]
[392995392,1762207842929,-1012.13556112,0.0003648,2]
[392995393,1762207842939,-440.21940721,0.0003648,2]
[392995394,1762207842951,-362.38083996,0.0003648,2]
[392995395,1762207843002,-3356.12167242,0.0003648,2]
[392995396,1762207843013,-1370.5957456,0.0003648,2]
[392995397,1762207843024,-519.230507,0.0003648,2]
[392995398,1762207843035,-30616.77996953,0.0003648,2]
[392995399,1762207843045,-825.0,0.00036626,7]
[392995400,1762207843054,-1500.0,0.000367,22]
[392995401,1762207843063,-506.4537,0.000367,22]
[392995402,1762207843072,-168.0,0.00036716,2]
[392995403,1762207843081,-150.49798334,0.00036737,2]
[392995404,1762207843091,-165.64738028,0.00036738,15]
[392995405,1762207843100,-3005.68459282,0.00036738,9]
[392995406,1762207843109,-152.99872714,0.00036755,2]
[392995407,1762207843119,-200.0,0.00036764,10]
[392995408,1762207843128,-200.0,0.00036765,10]
[392995409,1762207843137,-200.0,0.00036765,10]
[392995410,1762207843147,-152.99872708,0.00036787,2]
[392995411,1762207843156,-185.02970596,0.00036799,15]
[392995412,1762207843165,-340.63833627,0.00036799,15]
[392995413,1762207843174,-193.98058654,0.00036799,15]
[392995414,1762207843183,-209.28486738,0.00036799,15]
[392995417,1762207843331,-17.58725818,0.00036799,15]
[392995418,1762207843400,-67.95065908,0.00036799,15]
[392995419,1762207843410,-1704.54934092,0.000368,4]
[392995420,1762207843421,-28295.45065908,0.000368,4]
[392995421,1762207843430,-1425.0,0.00036817,2]
[392995422,1762207843440,-152.99872708,0.00036819,2]
[392995423,1762207843449,-150.0,0.00036821,30]
[392995424,1762207843458,-150.0,0.00036821,120]
[392995425,1762207843469,-500.0,0.00036821,30]
[392995426,1762207843478,-500.0,0.00036821,30]
[392995427,1762207843487,-150.0,0.00036821,30]
[392995428,1762207843500,-500.0,0.00036821,30]
[392995429,1762207843510,-716.0,0.00036821,30]
[392995430,1762207843519,-716.0,0.00036821,30]
[392995431,1762207843528,-500.0,0.00036821,30]
[392995432,1762207843539,-183.69962206,0.00036821,30]
[392995433,1762207843548,-150.0,0.00036821,30]
[392995434,1762207843559,-150.0,0.00036821,2]
[392995435,1762207843568,-4063.34636,0.00036824,2]
[392995436,1762207843579,-4960.29758568,0.00036829,4]
[392995442,1762207846165,-2366.1340389,0.00036829,4]
[392995443,1762207846224,-15740.60146751,0.00036829,4]
[392995444,1762207846440,-3028.34843191,0.00036829,4]
[392995445,1762207846450,-264.8026421,0.0003683,2]
[392995447,1762207846459,-145225.40114325,0.00036837,4]
[392995467,1762208887579,565.84422964,0.000135,2]
[392995468,1762208902620,221.97324561,0.0001,2]
[392995471,1762208909208,265.90487913,0.000107,2]
[392995473,1762208916058,13026.23595715,0.0001,2]
[392995474,1762208918986,956.82215413,0.00013699,2]
[392995475,1762208929693,197.0,0.00027039,120]
[392995476,1762208930895,197.0,0.00027029,120]
[392995477,1762208931106,197.0,0.00027019,120]
[392995478,1762208945832,700.0,0.000147,5]
[392995479,1762208947900,1500.0,0.000148,5]
[392995480,1762208950028,2200.0,0.000149,5]
[392995481,1762208968137,-2963.3626741,0.0001439,2]
[392995482,1762208968157,-472.07859674,0.00014973,2]
[392995483,1762208968179,-151.0,0.00014997,2]
[392995484,1762208968202,-300.0,0.00014998,2]
[392995485,1762208968222,-186.83068766,0.00014999,2]
[392995486,1762208968243,-371.58215583,0.00014999,2]
[392995487,1762208968263,-270.07333545,0.00014999,2]
[392995488,1762208968288,-226.39797422,0.00014999,2]
[392995498,1762209032235,-254.890961,0.00014973,2]
[392995499,1762209032246,-245.109039,0.00014973,2]
[392995500,1762209032255,-500.0,0.00014973,2]
[392995501,1762209032265,-422.35505909,0.0001499,2]
[392995502,1762209032274,-151.0,0.00014997,2]
[392995504,1762209032284,-295.85148335,0.00014998,2]
[392995506,1762209032323,-4.14851665,0.00014998,2]
[392995507,1762209032333,-1200.0,0.00014998,2]
[392995508,1762209032343,-273.60202578,0.00014999,2]
[392995509,1762209032356,-500.0,0.00014999,2]
[392995510,1762209032367,-500.0,0.00014999,2]
[392995512,1762209032377,-500.0,0.00014999,2]
[392995513,1762209032387,-287.14945757,0.00014999,2]
[392995514,1762209032399,-212.85054243,0.00014999,2]
[392995516,1762209032408,-500.0,0.00014999,2]
[392995517,1762209032417,-279.55465937,0.00014999,2]
[392995518,1762209032429,-25.43930935,0.00014999,2]
[392995519,1762209032438,-436.67134778,0.00014999,2]
[392995520,1762209032450,-63.32865222,0.00014999,2]
[392995521,1762209032459,-500.0,0.00014999,2]
[392995522,1762209032471,-557.39300571,0.00014999,2]
[392995523,1762209032480,-500.0,0.00014999,2]
[392995524,1762209032490,-181.26803184,0.00014999,2]
[392995525,1762209032499,-182.10371703,0.00014999,2]
[392995526,1762209032509,-152.24843486,0.00014999,2]
[392995527,1762209032518,-2798.85936697,0.00015,2]
[392995528,1762209037931,-1038.82018989,0.00015,2]
[392995529,1762209037943,-617.26364904,0.00015,2]
[392995530,1762209038025,-55987.3006019,0.00015,2]
[392995531,1762209038036,-1916690.83115172,0.00015,2]
[392995532,1762209038046,-163.57564903,0.00016238,2]
[392995533,1762209038056,-1236.22408551,0.00016338,2]
[392995534,1762209038066,-500.0,0.00016438,2]
[392995535,1762209038075,-400.0,0.00016498,2]
[392995536,1762209038085,-337.91944318,0.00017534,2]
[392995537,1762209038095,-1236.22408551,0.00018606,2]
[392995538,1762209038105,-163.57564895,0.00018827,2]
[392995539,1762209038115,-477.5520043,0.00018971,2]
[392995540,1762209038125,-1236.22408551,0.00020874,2]
[392995541,1762209038136,-163.57564895,0.00021416,2]
[392995542,1762209038146,-259.86046618,0.00022099,2]
[392995543,1762209038156,-500.0,0.00022173,2]
[392995544,1762209038167,-108342.45045672,0.000222,2]
[392995545,1762209038177,-1236.22408551,0.00023142,2]
[392995546,1762209038187,-259.86046617,0.00023749,2]
[392995547,1762209038196,-151.0,0.00024797,7]
[392995548,1762209038207,-151.0,0.00024797,7]
[392995549,1762209038220,-151.0,0.00024797,7]
[392995550,1762209038231,-584800.57027,0.000248,3]
[392995551,1762209038241,-477.5520043,0.000248,3]
[392995552,1762209038251,-3810.17,0.000248,7]
[392995554,1762209038261,-1835.2365,0.00024877,10]
[392995556,1762209038271,-151.0,0.00024897,7]
[392995558,1762209038281,-151.0,0.00024897,7]
[392995560,1762209038291,-464131.18433,0.000249,3]
[392995562,1762209038300,-3000.0,0.000249,9]
[392995565,1762209038310,-151.0,0.000249,7]
[392995567,1762209038320,-151.0,0.000249,7]
[392995570,1762209038329,-434.152442,0.000249,7]
[392995574,1762209038339,-151.0,0.000249,7]
[392995577,1762209038348,-434.152442,0.000249,7]
[392995579,1762209038358,-434.152442,0.000249,7]
[392995580,1762209038368,-416.883281,0.000249,7]
[392995583,1762209038378,-434.152442,0.000249,7]
[392995584,1762209038388,-151.0,0.000249,7]
[392995586,1762209038397,-152.281979,0.000249,7]
[392995588,1762209038407,-151.0,0.000249,7]
[392995590,1762209038417,-151.0,0.000249,7]
[392995592,1762209038426,-151.0,0.000249,7]
[392995594,1762209038435,-151.0,0.000249,7]
[392995596,1762209038444,-416.883281,0.000249,7]
[392995597,1762209038454,-151.0,0.000249,7]
[392995599,1762209038463,-151.0,0.000249,7]
[392995601,1762209038475,-416.883281,0.000249,7]
[392995603,1762209038484,-151.0,0.000249,7]
[392995604,1762209038494,-151.0,0.000249,7]
[392995605,1762209038503,-416.883281,0.000249,7]
[392995606,1762209038512,-151.0,0.000249,7]
[392995607,1762209038522,-159.49417,0.000249,7]
[392995608,1762209038532,-233.531605,0.000249,7]
[392995609,1762209038542,-233.531605,0.000249,7]
[392995610,1762209038552,-233.531605,0.000249,7]
[392995611,1762209038561,-233.531605,0.000249,7]
[392995612,1762209038571,-151.0,0.000249,7]
[392995613,1762209038581,-262.765243,0.000249,7]
[392995614,1762209038590,-212.011823,0.000249,7]
[392995615,1762209038600,-262.765243,0.000249,7]